{"text_format":"1","workbook":"xlsx","n_sheets":2,"sheets":["リスト","原本"],"not_rendered":{"charts":0,"images":1,"macros":1,"external_links":0,"defined_names":7,"comments":1,"pivot_tables":0},"unopened":[],"bounds":{"document_bytes":16777216,"sheet_cells":100000,"rows_first":2000,"rows_last":500,"rows_between":2000,"halvings":0,"cell_chars":16384,"cell_head_chars":4096},"cells_cut":0,"cells_raw":0,"read":"whole","date_system":"1900"}

{"sheet":"リスト","index":0,"n_rows":33,"n_cols":6,"rows_kept":33,"cut":false,"hidden":false,"merged":[[0,1,0,3]]}
[null,"編集追加してください。"]
[null,"開口部の位置","開口部の種別","ガラス種別","月","日"]
[null,null,null,null,1,1]
[null,"東","片開き扉","普通板ガラス",2,2]
[null,"北東","両開き扉","フロート板ガラス",3,3]
[null,"北","FIX","磨き板ガラス",4,4]
[null,"北西","引き違い窓","型板ガラス",5,5]
[null,"西","軽量シャッター（手動）","熱線吸収板ガラス",6,6]
[null,"南西","軽量シャッター（電動）","熱線反射ガラス",7,7]
[null,"南","重量シャッター（電動）","網入板ガラス",8,8]
[null,"南東","下開き窓","線入板ガラス",9,9]
[null,null,"上開き窓","強化ガラス",10,10]
[null,null,"回転窓","耐熱板ガラス",11,11]
[null,null,"引き違い戸","合わせガラス",12,12]
[null,null,null,"倍強度ガラス",null,13]
[null,null,null,"複層ガラス",null,14]
[null,null,null,null,null,15]
[null,null,null,null,null,16]
[null,null,null,null,null,17]
[null,null,null,null,null,18]
[null,null,null,null,null,19]
[null,null,null,null,null,20]
[null,null,null,null,null,21]
[null,null,null,null,null,22]
[null,null,null,null,null,23]
[null,null,null,null,null,24]
[null,null,null,null,null,25]
[null,null,null,null,null,26]
[null,null,null,null,null,27]
[null,null,null,null,null,28]
[null,null,null,null,null,29]
[null,null,null,null,null,30]
[null,null,null,null,null,31]

{"sheet":"原本","index":1,"n_rows":53,"n_cols":83,"rows_kept":53,"cut":false,"hidden":false,"merged":[[51,1,51,83],[52,1,52,83],[47,81,48,85],[48,20,48,32],[48,45,48,52],[48,63,48,68],[48,69,48,71],[50,1,50,83],[47,48,47,49],[47,50,47,55],[47,56,48,59],[47,60,48,62],[47,63,47,70],[47,72,48,80],[47,1,48,5],[47,6,48,11],[47,12,48,19],[47,20,47,32],[47,33,48,41],[47,42,47,47],[46,20,46,32],[46,45,46,52],[46,63,46,68],[46,69,46,71],[45,42,45,47],[45,48,45,49],[45,50,45,55],[45,56,46,59],[45,60,46,62],[45,63,45,70],[43,81,44,85],[44,20,44,32],[44,45,44,52],[44,63,44,68],[44,69,44,71],[45,1,46,5],[45,6,46,11],[45,12,46,19],[45,20,45,32],[45,33,46,41],[43,48,43,49],[43,50,43,55],[43,56,44,59],[43,60,44,62],[43,63,43,70],[43,72,44,80],[43,1,44,5],[43,6,44,11],[43,12,44,19],[43,20,43,32],[43,33,44,41],[43,42,43,47],[45,72,46,80],[45,81,46,85],[42,20,42,32],[42,45,42,52],[42,63,42,68],[42,69,42,71],[41,42,41,47],[41,48,41,49],[41,50,41,55],[41,56,42,59],[41,60,42,62],[41,63,41,70],[39,81,40,85],[40,20,40,32],[40,45,40,52],[40,63,40,68],[40,69,40,71],[41,1,42,5],[41,6,42,11],[41,12,42,19],[41,20,41,32],[41,33,42,41],[39,48,39,49],[39,50,39,55],[39,56,40,59],[39,60,40,62],[39,63,39,70],[39,72,40,80],[39,1,40,5],[39,6,40,11],[39,12,40,19],[39,20,39,32],[39,33,40,41],[39,42,39,47],[41,72,42,80],[41,81,42,85],[38,20,38,32],[38,45,38,52],[38,63,38,68],[38,69,38,71],[37,42,37,47],[37,48,37,49],[37,50,37,55],[37,56,38,59],[37,60,38,62],[37,63,37,70],[35,81,36,85],[36,20,36,32],[36,45,36,52],[36,63,36,68],[36,69,36,71],[37,1,38,5],[37,6,38,11],[37,12,38,19],[37,20,37,32],[37,33,38,41],[35,48,35,49],[35,50,35,55],[35,56,36,59],[35,60,36,62],[35,63,35,70],[35,72,36,80],[35,1,36,5],[35,6,36,11],[35,12,36,19],[35,20,35,32],[35,33,36,41],[35,42,35,47],[37,72,38,80],[37,81,38,85],[34,20,34,32],[34,45,34,52],[34,63,34,68],[34,69,34,71],[33,42,33,47],[33,48,33,49],[33,50,33,55],[33,56,34,59],[33,60,34,62],[33,63,33,70],[31,81,32,85],[32,20,32,32],[32,45,32,52],[32,63,32,68],[32,69,32,71],[33,1,34,5],[33,6,34,11],[33,12,34,19],[33,20,33,32],[33,33,34,41],[31,48,31,49],[31,50,31,55],[31,56,32,59],[31,60,32,62],[31,63,31,70],[31,72,32,80],[31,1,32,5],[31,6,32,11],[31,12,32,19],[31,20,31,32],[31,33,32,41],[31,42,31,47],[33,72,34,80],[33,81,34,85],[30,20,30,32],[30,45,30,52],[30,63,30,68],[30,69,30,71],[29,42,29,47],[29,48,29,49],[29,50,29,55],[29,56,30,59],[29,60,30,62],[29,63,29,70],[27,81,28,85],[28,20,28,32],[28,45,28,52],[28,63,28,68],[28,69,28,71],[29,1,30,5],[29,6,30,11],[29,12,30,19],[29,20,29,32],[29,33,30,41],[27,48,27,49],[27,50,27,55],[27,56,28,59],[27,60,28,62],[27,63,27,70],[27,72,28,80],[27,1,28,5],[27,6,28,11],[27,12,28,19],[27,20,27,32],[27,33,28,41],[27,42,27,47],[29,72,30,80],[29,81,30,85],[25,72,26,80],[25,81,26,85],[26,20,26,32],[26,45,26,52],[26,63,26,68],[26,69,26,71],[25,42,25,47],[25,48,25,49],[25,50,25,55],[25,56,26,59],[25,60,26,62],[25,63,25,70],[25,1,26,5],[25,6,26,11],[25,12,26,19],[25,20,25,32],[25,33,26,41],[23,48,23,49],[23,50,23,55],[23,56,24,59],[23,60,24,62],[23,1,24,5],[23,6,24,11],[23,12,24,19],[23,20,23,32],[23,33,24,41],[23,42,23,47],[21,33,21,41],[21,45,21,52],[15,22,15,32],[15,38,15,48],[23,81,24,85],[24,20,24,32],[24,45,24,52],[24,63,24,68],[24,69,24,71],[23,63,23,70],[23,72,24,80],[17,1,17,17],[17,81,17,85],[19,60,22,62],[19,81,22,85],[20,1,21,5],[20,6,21,11],[20,12,21,19],[20,20,20,32],[13,1,13,14],[13,22,13,35],[13,38,13,51],[13,54,13,71],[13,78,13,85],[14,3,14,14],[14,22,14,35],[14,38,14,51],[14,54,15,71],[14,78,15,85],[21,20,22,32],[20,33,20,41],[20,42,20,55],[20,56,21,59],[20,63,21,71],[20,72,21,80],[8,54,8,61],[8,62,8,83],[10,1,10,14],[10,16,10,51],[12,2,12,3],[12,4,12,9],[12,10,12,11],[12,12,12,13],[2,0,3,85],[6,54,6,61],[6,62,6,69],[6,70,6,71],[6,72,6,75],[6,76,6,77],[6,78,6,81],[6,82,6,83],[4,4,4,9],[4,10,8,48]]}
[]
[]
["普通階 ・ 無窓階  判定書"]
[]
[null,null,null,null,"特記："]
[]
[null,null,null,null,null,null,null,null,null,null,null,null,null,null,null,null,null,null,null,null,null,null,null,null,null,null,null,null,null,null,null,null,null,null,null,null,null,null,null,null,null,null,null,null,null,null,null,null,null,null,null,null,null,null,"算定日",null,null,null,null,null,null,null,null,null,null,null,null,null,null,null,"年",null,null,null,null,null,"月",null,null,null,null,null,"日"]
[]
[null,null,null,null,null,null,null,null,null,null,null,null,null,null,null,null,null,null,null,null,null,null,null,null,null,null,null,null,null,null,null,null,null,null,null,null,null,null,null,null,null,null,null,null,null,null,null,null,null,null,null,null,null,null,"算定者"]
[]
[null,"防火対象物名称"]
[]
[null,null,"（",null,null,null,null,null,null,null,"階",null,"）"]
[null,"床 面 積（㎡）",null,null,null,null,null,null,null,null,null,null,null,null,null,null,null,null,null,null,null,null,"必要開口面積",null,null,null,null,null,null,null,null,null,null,null,null,null,null,null,"有効開口部合計",null,null,null,null,null,null,null,null,null,null,null,null,null,null,null,"判 定 結 果",null,null,null,null,null,null,null,null,null,null,null,null,null,null,null,null,null,null,null,null,null,null,null,"消防機関判定"]
[null,"A",null,null,null,null,null,null,null,null,null,null,null,null,null,null,null,null,null,null,null,null,"A÷30＝",null,null,null,null,null,null,null,null,null,null,null,null,null,null,null,"a～ｍ",null,null,null,null,null,null,null,null,null,null,null,null,null,null,null,{"$f":"IF(OR(D15=\"\",W16=0,AM16=\"\"),\"\",IF(AND(BT17>=2,W16<=AM16),\"普 通 階\",\"無 窓 階\"))","v":""}]
[null,null,null,null,null,null,null,null,null,null,null,null,null,null,null,null,null,null,null,null,null,null,{"$f":"D15/30","v":0},null,null,null,null,null,null,null,null,null,null,"㎡",null,null,null,null,{"$f":"SUM(BL25,BL27,BL29,BL31,BL33,BL35,BL37,BL39,BL41,BL43,BL45,BL47,BL49)","v":0},null,null,null,null,null,null,null,null,null,null,"㎡"]
[null,null,null,null,null,null,null,null,null,null,null,null,null,null,null,null,null,null,null,null,null,null,null,null,null,null,null,null,null,null,null,null,null,null,null,null,null,null,null,null,null,null,null,null,null,null,null,null,null,null,null,null,null,null,null,null,null,null,null,null,null,null,null,null,null,null,null,null,null,null,null,{"$f":"SUM(BT24,BT26,BT28,BT30,BT32,BT34,BT36,BT38,BT40,BT42,BT44,BT46,BT48)","v":0}]
[null,"有効開口部算定表",null,null,null,null,null,null,null,null,null,null,null,null,null,null,null,null,null,null,null,null,null,null,null,null,null,null,null,null,null,null,null,null,null,null,null,null,null,null,null,null,null,null,null,null,null,null,null,null,null,null,null,null,null,null,null,null,null,null,null,null,null,null,null,null,null,null,null,null,null,null,null,null,null,null,null,null,null,null,null,"消防機関使用"]
[]
[null,null,null,null,null,null,null,null,null,null,null,null,null,null,null,null,null,null,null,null,null,null,null,null,null,null,null,null,null,null,null,null,null,null,null,null,null,null,null,null,null,null,null,null,null,null,null,null,null,null,null,null,null,null,null,null,null,null,null,null,"大型開口",null,null,null,null,null,null,null,null,null,null,null,null,null,null,null,null,null,null,null,null,"判定"]
[null,"建具記号",null,null,null,null,"開口部の位置",null,null,null,null,null,"開口部の\n種  　別",null,null,null,null,null,null,null,"ガラス種別",null,null,null,null,null,null,null,null,null,null,null,null,"床面からの",null,null,null,null,null,null,null,null,"幅（ｍ）×高さ（ｍ）",null,null,null,null,null,null,null,null,null,null,null,null,null,"数量",null,null,null,null,null,null,"開口部の\n面積小計",null,null,null,null,null,null,null,null,"備考"]
[null,null,null,null,null,null,null,null,null,null,null,null,null,null,null,null,null,null,null,null,"ガラス厚さ（ｍｍ）",null,null,null,null,null,null,null,null,null,null,null,null,"高さ（ｍ）",null,null,null,null,null,null,null,null," ＝",null,null,null,null,null,null,null,null,null,null,"㎡"]
[]
[null,null,null,null,null,null,null,null,null,null,null,null,null,null,null,null,null,null,null,null,null,null,null,null,null,null,null,null,null,null,null,null,null,null,null,null,null,null,null,null,null,null,null,null,null,null,null,null,"×",null,null,null,null,null,null,null,null,null,null,null,{"$f":"IF(BL25=0,\"\",IF(AND(AQ24>=0.75,AY24>=1.2),\"○\",IF(AND(AQ24>=1,AY24>=1),\"○\",\"\")))","v":""},null,null,"a",null,null,null,null,null,null,null,{"$f":"IF(AND(AH24<=1.2,BI24=\"○\"),BE24,0)","v":0},null,null,null,null,null,null,null,null,null,"　"]
[null,null,null,null,null,null,null,null,null,null,null,null,null,null,null,null,null,null,null,null,null,null,null,null,null,null,null,null,null,null,null,null,null,null,null,null,null,null,null,null,null,null," ＝",null,null,{"$f":"AQ24*AY24","v":0},null,null,null,null,null,null,null,"㎡",null,null,null,null,null,null,null,null,null,{"$f":"IF(OR(AH24>=1.21,CD24=\"×\"),0,AT25*BE24)","v":0},null,null,null,null,null,"㎡"]
[null,null,null,null,null,null,null,null,null,null,null,null,null,null,null,null,null,null,null,null,null,null,null,null,null,null,null,null,null,null,null,null,null,null,null,null,null,null,null,null,null,null,null,null,null,null,null,null,"×",null,null,null,null,null,null,null,null,null,null,null,{"$f":"IF(BL27=0,\"\",IF(AND(AQ26>=0.75,AY26>=1.2),\"○\",IF(AND(AQ26>=1,AY26>=1),\"○\",\"\")))","v":""},null,null,"b",null,null,null,null,null,null,null,{"$f":"IF(BI26=\"○\",BE26,0)","v":0}]
[null,null,null,null,null,null,null,null,null,null,null,null,null,null,null,null,null,null,null,null,null,null,null,null,null,null,null,null,null,null,null,null,null,null,null,null,null,null,null,null,null,null," ＝",null,null,{"$f":"AQ26*AY26","v":0},null,null,null,null,null,null,null,"㎡",null,null,null,null,null,null,null,null,null,{"$f":"IF(OR(AH26>=1.21,CD26=\"×\"),0,AT27*BE26)","v":0},null,null,null,null,null,"㎡"]
[null,null,null,null,null,null,null,null,null,null,null,null,null,null,null,null,null,null,null,null,null,null,null,null,null,null,null,null,null,null,null,null,null,null,null,null,null,null,null,null,null,null,null,null,null,null,null,null,"×",null,null,null,null,null,null,null,null,null,null,null,{"$f":"IF(BL29=0,\"\",IF(AND(AQ28>=0.75,AY28>=1.2),\"○\",IF(AND(AQ28>=1,AY28>=1),\"○\",\"\")))","v":""},null,null,"c",null,null,null,null,null,null,null,{"$f":"IF(BI28=\"○\",BE28,0)","v":0}]
[null,null,null,null,null,null,null,null,null,null,null,null,null,null,null,null,null,null,null,null,null,null,null,null,null,null,null,null,null,null,null,null,null,null,null,null,null,null,null,null,null,null," ＝",null,null,{"$f":"AQ28*AY28","v":0},null,null,null,null,null,null,null,"㎡",null,null,null,null,null,null,null,null,null,{"$f":"IF(OR(AH28>=1.21,CD28=\"×\"),0,AT29*BE28)","v":0},null,null,null,null,null,"㎡"]
[null,null,null,null,null,null,null,null,null,null,null,null,null,null,null,null,null,null,null,null,null,null,null,null,null,null,null,null,null,null,null,null,null,null,null,null,null,null,null,null,null,null,null,null,null,null,null,null,"×",null,null,null,null,null,null,null,null,null,null,null,{"$f":"IF(BL31=0,\"\",IF(AND(AQ30>=0.75,AY30>=1.2),\"○\",IF(AND(AQ30>=1,AY30>=1),\"○\",\"\")))","v":""},null,null,"d",null,null,null,null,null,null,null,{"$f":"IF(BI30=\"○\",BE30,0)","v":0}]
[null,null,null,null,null,null,null,null,null,null,null,null,null,null,null,null,null,null,null,null,null,null,null,null,null,null,null,null,null,null,null,null,null,null,null,null,null,null,null,null,null,null," ＝",null,null,{"$f":"AQ30*AY30","v":0},null,null,null,null,null,null,null,"㎡",null,null,null,null,null,null,null,null,null,{"$f":"IF(OR(AH30>=1.21,CD30=\"×\"),0,AT31*BE30)","v":0},null,null,null,null,null,"㎡"]
[null,null,null,null,null,null,null,null,null,null,null,null,null,null,null,null,null,null,null,null,null,null,null,null,null,null,null,null,null,null,null,null,null,null,null,null,null,null,null,null,null,null,null,null,null,null,null,null,"×",null,null,null,null,null,null,null,null,null,null,null,{"$f":"IF(BL33=0,\"\",IF(AND(AQ32>=0.75,AY32>=1.2),\"○\",IF(AND(AQ32>=1,AY32>=1),\"○\",\"\")))","v":""},null,null,"e",null,null,null,null,null,null,null,{"$f":"IF(BI32=\"○\",BE32,0)","v":0}]
[null,null,null,null,null,null,null,null,null,null,null,null,null,null,null,null,null,null,null,null,null,null,null,null,null,null,null,null,null,null,null,null,null,null,null,null,null,null,null,null,null,null," ＝",null,null,{"$f":"AQ32*AY32","v":0},null,null,null,null,null,null,null,"㎡",null,null,null,null,null,null,null,null,null,{"$f":"IF(OR(AH32>=1.21,CD32=\"×\"),0,AT33*BE32)","v":0},null,null,null,null,null,"㎡"]
[null,null,null,null,null,null,null,null,null,null,null,null,null,null,null,null,null,null,null,null,null,null,null,null,null,null,null,null,null,null,null,null,null,null,null,null,null,null,null,null,null,null,null,null,null,null,null,null,"×",null,null,null,null,null,null,null,null,null,null,null,{"$f":"IF(BL35=0,\"\",IF(AND(AQ34>=0.75,AY34>=1.2),\"○\",IF(AND(AQ34>=1,AY34>=1),\"○\",\"\")))","v":""},null,null,"f",null,null,null,null,null,null,null,{"$f":"IF(BI34=\"○\",BE34,0)","v":0}]
[null,null,null,null,null,null,null,null,null,null,null,null,null,null,null,null,null,null,null,null,null,null,null,null,null,null,null,null,null,null,null,null,null,null,null,null,null,null,null,null,null,null," ＝",null,null,{"$f":"AQ34*AY34","v":0},null,null,null,null,null,null,null,"㎡",null,null,null,null,null,null,null,null,null,{"$f":"IF(OR(AH34>=1.21,CD34=\"×\"),0,AT35*BE34)","v":0},null,null,null,null,null,"㎡"]
[null,null,null,null,null,null,null,null,null,null,null,null,null,null,null,null,null,null,null,null,null,null,null,null,null,null,null,null,null,null,null,null,null,null,null,null,null,null,null,null,null,null,null,null,null,null,null,null,"×",null,null,null,null,null,null,null,null,null,null,null,{"$f":"IF(BL37=0,\"\",IF(AND(AQ36>=0.75,AY36>=1.2),\"○\",IF(AND(AQ36>=1,AY36>=1),\"○\",\"\")))","v":""},null,null,"g",null,null,null,null,null,null,null,{"$f":"IF(BI36=\"○\",BE36,0)","v":0}]
[null,null,null,null,null,null,null,null,null,null,null,null,null,null,null,null,null,null,null,null,null,null,null,null,null,null,null,null,null,null,null,null,null,null,null,null,null,null,null,null,null,null," ＝",null,null,{"$f":"AQ36*AY36","v":0},null,null,null,null,null,null,null,"㎡",null,null,null,null,null,null,null,null,null,{"$f":"IF(OR(AH36>=1.21,CD36=\"×\"),0,AT37*BE36)","v":0},null,null,null,null,null,"㎡"]
[null,null,null,null,null,null,null,null,null,null,null,null,null,null,null,null,null,null,null,null,null,null,null,null,null,null,null,null,null,null,null,null,null,null,null,null,null,null,null,null,null,null,null,null,null,null,null,null,"×",null,null,null,null,null,null,null,null,null,null,null,{"$f":"IF(BL39=0,\"\",IF(AND(AQ38>=0.75,AY38>=1.2),\"○\",IF(AND(AQ38>=1,AY38>=1),\"○\",\"\")))","v":""},null,null,"h",null,null,null,null,null,null,null,{"$f":"IF(BI38=\"○\",BE38,0)","v":0}]
[null,null,null,null,null,null,null,null,null,null,null,null,null,null,null,null,null,null,null,null,null,null,null,null,null,null,null,null,null,null,null,null,null,null,null,null,null,null,null,null,null,null," ＝",null,null,{"$f":"AQ38*AY38","v":0},null,null,null,null,null,null,null,"㎡",null,null,null,null,null,null,null,null,null,{"$f":"IF(OR(AH38>=1.21,CD38=\"×\"),0,AT39*BE38)","v":0},null,null,null,null,null,"㎡"]
[null,null,null,null,null,null,null,null,null,null,null,null,null,null,null,null,null,null,null,null,null,null,null,null,null,null,null,null,null,null,null,null,null,null,null,null,null,null,null,null,null,null,null,null,null,null,null,null,"×",null,null,null,null,null,null,null,null,null,null,null,{"$f":"IF(BL41=0,\"\",IF(AND(AQ40>=0.75,AY40>=1.2),\"○\",IF(AND(AQ40>=1,AY40>=1),\"○\",\"\")))","v":""},null,null,"i",null,null,null,null,null,null,null,{"$f":"IF(BI40=\"○\",BE40,0)","v":0}]
[null,null,null,null,null,null,null,null,null,null,null,null,null,null,null,null,null,null,null,null,null,null,null,null,null,null,null,null,null,null,null,null,null,null,null,null,null,null,null,null,null,null," ＝",null,null,{"$f":"AQ40*AY40","v":0},null,null,null,null,null,null,null,"㎡",null,null,null,null,null,null,null,null,null,{"$f":"IF(OR(AH40>=1.21,CD40=\"×\"),0,AT41*BE40)","v":0},null,null,null,null,null,"㎡"]
[null,null,null,null,null,null,null,null,null,null,null,null,null,null,null,null,null,null,null,null,null,null,null,null,null,null,null,null,null,null,null,null,null,null,null,null,null,null,null,null,null,null,null,null,null,null,null,null,"×",null,null,null,null,null,null,null,null,null,null,null,{"$f":"IF(BL43=0,\"\",IF(AND(AQ42>=0.75,AY42>=1.2),\"○\",IF(AND(AQ42>=1,AY42>=1),\"○\",\"\")))","v":""},null,null,"j",null,null,null,null,null,null,null,{"$f":"IF(BI42=\"○\",BE42,0)","v":0}]
[null,null,null,null,null,null,null,null,null,null,null,null,null,null,null,null,null,null,null,null,null,null,null,null,null,null,null,null,null,null,null,null,null,null,null,null,null,null,null,null,null,null," ＝",null,null,{"$f":"AQ42*AY42","v":0},null,null,null,null,null,null,null,"㎡",null,null,null,null,null,null,null,null,null,{"$f":"IF(OR(AH42>=1.21,CD42=\"×\"),0,AT43*BE42)","v":0},null,null,null,null,null,"㎡"]
[null,null,null,null,null,null,null,null,null,null,null,null,null,null,null,null,null,null,null,null,null,null,null,null,null,null,null,null,null,null,null,null,null,null,null,null,null,null,null,null,null,null,null,null,null,null,null,null,"×",null,null,null,null,null,null,null,null,null,null,null,{"$f":"IF(BL45=0,\"\",IF(AND(AQ44>=0.75,AY44>=1.2),\"○\",IF(AND(AQ44>=1,AY44>=1),\"○\",\"\")))","v":""},null,null,"k",null,null,null,null,null,null,null,{"$f":"IF(BI44=\"○\",BE44,0)","v":0}]
[null,null,null,null,null,null,null,null,null,null,null,null,null,null,null,null,null,null,null,null,null,null,null,null,null,null,null,null,null,null,null,null,null,null,null,null,null,null,null,null,null,null," ＝",null,null,{"$f":"AQ44*AY44","v":0},null,null,null,null,null,null,null,"㎡",null,null,null,null,null,null,null,null,null,{"$f":"IF(OR(AH44>=1.21,CD44=\"×\"),0,AT45*BE44)","v":0},null,null,null,null,null,"㎡"]
[null,null,null,null,null,null,null,null,null,null,null,null,null,null,null,null,null,null,null,null,null,null,null,null,null,null,null,null,null,null,null,null,null,null,null,null,null,null,null,null,null,null,null,null,null,null,null,null,"×",null,null,null,null,null,null,null,null,null,null,null,{"$f":"IF(BL47=0,\"\",IF(AND(AQ46>=0.75,AY46>=1.2),\"○\",IF(AND(AQ46>=1,AY46>=1),\"○\",\"\")))","v":""},null,null,"l",null,null,null,null,null,null,null,{"$f":"IF(BI46=\"○\",BE46,0)","v":0}]
[null,null,null,null,null,null,null,null,null,null,null,null,null,null,null,null,null,null,null,null,null,null,null,null,null,null,null,null,null,null,null,null,null,null,null,null,null,null,null,null,null,null," ＝",null,null,{"$f":"AQ46*AY46","v":0},null,null,null,null,null,null,null,"㎡",null,null,null,null,null,null,null,null,null,{"$f":"IF(OR(AH46>=1.21,CD46=\"×\"),0,AT47*BE46)","v":0},null,null,null,null,null,"㎡"]
[null,null,null,null,null,null,null,null,null,null,null,null,null,null,null,null,null,null,null,null,null,null,null,null,null,null,null,null,null,null,null,null,null,null,null,null,null,null,null,null,null,null,null,null,null,null,null,null,"×",null,null,null,null,null,null,null,null,null,null,null,{"$f":"IF(BL49=0,\"\",IF(AND(AQ48>=0.75,AY48>=1.2),\"○\",IF(AND(AQ48>=1,AY48>=1),\"○\",\"\")))","v":""},null,null,"m",null,null,null,null,null,null,null,{"$f":"IF(BI48=\"○\",BE48,0)","v":0}]
[null,null,null,null,null,null,null,null,null,null,null,null,null,null,null,null,null,null,null,null,null,null,null,null,null,null,null,null,null,null,null,null,null,null,null,null,null,null,null,null,null,null," ＝",null,null,{"$f":"AQ48*AY48","v":0},null,null,null,null,null,null,null,"㎡",null,null,null,null,null,null,null,null,null,{"$f":"IF(OR(AH48>=1.21,CD48=\"×\"),0,AT49*BE48)","v":0},null,null,null,null,null,"㎡"]
[]
[null,"☆有効開口部が面する通路の位置及び幅員（有効幅員１ｍ以上）を配置図等に記入すること。"]
[null,"　（通路は、避難及び消火活動に支障がないもの（工作物、低木等がない状態）"]
[null,"☆算定に使用した開口部の建具表及びキープランを添付すること。"]